fUSD/lending_fUSD_20260202
["ID","MTS","AMOUNT","RATE_DAILY","PERIOD"]
[404296142,1770043523843,-500.0,0.00011606,2]
[404296143,1770043523879,-500.0,0.00011606,2]
[404296144,1770043523913,-500.0,0.00011606,2]
[404296145,1770043530021,-500.0,0.00011606,2]
[404296146,1770043530057,-500.0,0.00011606,2]
[404296147,1770043530090,-500.0,0.00011606,2]
[404296148,1770043537411,-2574.73798827,0.00011607,2]
[404296149,1770043537484,-5000.01,0.00011607,2]
[404296150,1770043539002,-5000.01,0.00011607,2]
[404296151,1770043539191,-5000.01,0.00011607,2]
[404296152,1770043539318,-5000.01,0.00011607,2]
[404296153,1770043539901,-5000.01,0.00011607,2]
[404296154,1770043539968,-5000.01,0.00011607,2]
[404296155,1770043540004,-5000.01,0.00011607,2]
[404296156,1770043540023,-5000.01,0.00011607,2]
[404296157,1770043540167,-5000.01,0.00011607,2]
[404296158,1770043542247,-198.39137328,0.00011508,2]
[404296159,1770043542287,-4603.22725344,0.00011607,2]
[404296160,1770043542463,-5000.01,0.00011607,2]
[404296161,1770043545054,-658.27112465,0.00011597,2]
[404296162,1770043545150,-3683.4677507,0.00011607,2]
[404296163,1770043545219,-5000.01,0.00011607,2]
[404296164,1770043545363,-5000.01,0.00011607,2]
[404296165,1770043545556,-5000.01,0.00011607,2]
[404296166,1770043545684,-5000.01,0.00011607,2]
[404296167,1770043545808,-5000.01,0.00011607,2]
[404296168,1770043545925,-5000.01,0.00011607,2]
[404296169,1770043546036,-5000.01,0.00011607,2]
[404296170,1770043548055,-5000.01,0.00011607,2]
[404296172,1770043605236,2425.26986082,0.00011508,2]
[404296173,1770043606618,500.0,0.00011507,2]
[404296178,1770043656575,367.37281978,0.00011508,2]
[404296179,1770043659837,367.37281978,0.00011508,2]
[404296180,1770043664331,503.61199719,0.00015,3]
[404296181,1770043670745,1339.99449962,0.00011507,2]
[404296182,1770043670791,5000.01,0.00011507,2]
[404296183,1770043670819,5000.01,0.00011507,2]
[404296184,1770043670848,5000.01,0.00011507,2]
[404296185,1770043670870,5000.01,0.00011507,2]
[404296186,1770043670892,5000.01,0.00011507,2]
[404296187,1770043670915,5000.01,0.00011507,2]
[404296188,1770043670939,5000.01,0.00011507,2]
[404296189,1770043670961,5000.01,0.00011507,2]
[404296190,1770043670984,5000.01,0.00011507,2]
[404296191,1770043679873,-5000.01,0.00011507,2]
[404296192,1770043680045,-5000.01,0.00011507,2]
[404296193,1770043680207,-5000.01,0.00011507,2]
[404296194,1770043680346,-5000.01,0.00011507,2]
[404296195,1770043680486,-5000.01,0.00011507,2]
[404296196,1770043680639,-5000.01,0.00011507,2]
[404296197,1770043680782,-5000.01,0.00011507,2]
[404296198,1770043680938,-5000.01,0.00011507,2]
[404296199,1770043681060,-5000.01,0.00011507,2]
[404296200,1770043681205,-5000.01,0.00011507,2]
[404296201,1770043689077,-300.0,0.00011506,2]
[404296202,1770043689111,-150.0,0.00011506,2]
[404296203,1770043689141,-300.0,0.00011506,2]
[404296204,1770043689244,-3500.01,0.00011507,2]
[404296205,1770043689259,-5000.01,0.00011507,2]
[404296206,1770043689278,-5000.01,0.00011507,2]
[404296207,1770043689323,-5000.01,0.00011507,2]
[404296208,1770043689405,-5000.01,0.00011507,2]
[404296209,1770043689529,-5000.01,0.00011507,2]
[404296210,1770043689906,-5000.01,0.00011507,2]
[404296211,1770043689922,-5000.01,0.00011507,2]
[404296212,1770043689960,-5000.01,0.00011507,2]
[404296213,1770043690050,-5000.01,0.00011507,2]
[404296214,1770043694911,-5000.01,0.00011507,2]
[404296215,1770043695054,-5000.01,0.00011507,2]
[404296216,1770043695203,-5000.01,0.00011507,2]
[404296217,1770043695341,-5000.01,0.00011507,2]
[404296218,1770043695447,-5000.01,0.00011507,2]
[404296219,1770043695561,-5000.01,0.00011507,2]
[404296220,1770043695702,-5000.01,0.00011507,2]
[404296221,1770043695827,-5000.01,0.00011507,2]
[404296222,1770043695967,-5000.01,0.00011507,2]
[404296223,1770043696127,-5000.01,0.00011507,2]
[404296224,1770043706990,-5000.01,0.00011507,2]
[404296225,1770043707121,-5000.01,0.00011507,2]
[404296226,1770043707294,-5000.01,0.00011507,2]
[404296227,1770043707427,-5000.01,0.00011507,2]
[404296228,1770043707546,-5000.01,0.00011507,2]
[404296229,1770043707664,-5000.01,0.00011507,2]
[404296230,1770043707788,-5000.01,0.00011507,2]
[404296231,1770043707920,-5000.01,0.00011507,2]
[404296232,1770043708091,-5000.01,0.00011507,2]
[404296233,1770043708245,-5000.01,0.00011507,2]
[404296392,1770043831829,-1200.0,0.00011506,2]
[404296393,1770043831838,-300.0,0.00011506,2]
[404296394,1770043831847,-244.0,0.00011506,2]
[404296395,1770043831856,-1129.60682712,0.00011507,2]
[404296396,1770043831865,-500.0,0.00011507,2]
[404296397,1770043831874,-1183.71644684,0.00011507,2]
[404296398,1770043831883,-7438.30127075,0.00011507,2]
[404296399,1770043831894,-410.9,0.00011507,2]
[404296401,1770043831916,-73393.49292963,0.00011507,2]
[404296402,1770043831925,-161.03177452,0.00011507,2]
[404296403,1770043831934,-161.03177452,0.00011507,2]
[404296404,1770043831943,-161.03177452,0.00011507,2]
[404296405,1770043831951,-2500.0,0.00011507,2]
[404296406,1770043831960,-275.52961487,0.00011508,2]
[404296407,1770043831972,-275.52961487,0.00011508,2]
[404296408,1770043831981,-168.67,0.0001154,2]
[404296409,1770043831990,-198.5031719,0.0001154,2]
[404296410,1770043831999,-500.0,0.0001158,2]
[404296411,1770043832009,-150.0,0.0001158,2]
[404296412,1770043832018,-165.21031003,0.00011597,2]
[404296413,1770043832027,-210.67863296,0.00011606,2]
[404296414,1770043832036,-20499.6390525,0.00011607,2]
[404296415,1770043832045,-103302.98660694,0.00011607,2]
[404296421,1770043837770,-81999.99999997,0.00011607,2]
[404296422,1770043837832,-441.0999981,0.00011607,2]
[404296423,1770043837844,-332.99999985,0.00011607,2]
[404296424,1770043837900,-2460.21,0.00011607,2]
[404296425,1770043837911,-658.27112465,0.00011607,2]
[404296426,1770043837921,-2010.0,0.00011607,2]
[404296427,1770043837932,-440.98612844,0.00011607,2]
[404296428,1770043837942,-1588.46080379,0.00011607,2]
[404296435,1770043839846,-2511.0,0.00011607,2]
[404296436,1770043839878,-690.59613731,0.00011607,2]
[404296437,1770043839888,-836.90510949,0.00011607,2]
[404296438,1770043839899,-780.00000002,0.00011607,2]
[404296439,1770043839962,-2873.09432935,0.00011607,2]
[404296440,1770043839974,-802.49900877,0.00011607,2]
[404296441,1770043839989,-4075.0,0.00011607,2]
[404296442,1770043840207,-1525.0,0.00011607,2]
[404296443,1770043840218,-342.00545493,0.00011607,2]
[404296444,1770043840230,-1009.06426423,0.00011607,2]
[404296445,1770043840241,-585.81339104,0.00011607,2]
[404296446,1770043840252,-980.42542559,0.00011607,2]
[404296448,1770043840289,-3097281.01906569,0.00011607,2]
[404296449,1770043840299,-250.0,0.00011608,2]
[404296452,1770043840309,-500.0,0.00011635,2]
[404296454,1770043840319,-500.0,0.0001169,2]
[404296456,1770043840327,-151.5908,0.000117,2]
[404296458,1770043840337,-151.0,0.00011701,2]
[404296460,1770043840345,-151.0,0.00011701,2]
[404296462,1770043840355,-151.0,0.00011701,2]
[404296463,1770043840363,-151.0,0.00011701,2]
[404296465,1770043840372,-151.0,0.00011701,2]
[404296467,1770043840381,-151.0,0.00011701,2]
[404296469,1770043840390,-151.0,0.00011701,2]
[404296471,1770043840399,-151.0,0.00011701,2]
[404296473,1770043840408,-151.0,0.00011701,2]
[404296475,1770043840417,-151.0,0.00011701,2]
[404296477,1770043840427,-151.0,0.00011701,2]
[404296479,1770043840442,-151.0,0.00011701,2]
[404296481,1770043840450,-500.0,0.00011701,2]
[404296483,1770043840460,-151.0,0.00011701,2]
[404296485,1770043840469,-500.0,0.00011701,2]
[404296487,1770043840478,-151.0,0.00011701,2]
[404296488,1770043840487,-151.0,0.00011701,2]
[404296489,1770043840496,-500.0,0.00011701,2]
[404296490,1770043840504,-151.0,0.00011701,2]
[404296491,1770043840513,-151.0,0.00011701,2]
[404296492,1770043840522,-500.0,0.00011701,2]
[404296493,1770043840531,-151.0,0.00011701,2]
[404296494,1770043840540,-500.0,0.00011701,2]
[404296495,1770043840549,-151.0,0.00011701,2]
[404296496,1770043840558,-500.0,0.00011701,2]
[404296497,1770043840567,-151.0,0.00011701,2]
[404296498,1770043840575,-500.0,0.00011701,2]
[404296499,1770043840584,-151.0,0.00011701,2]
[404296500,1770043840593,-500.0,0.00011701,2]
[404296501,1770043840602,-151.0,0.00011701,2]
[404296502,1770043840611,-500.0,0.00011701,2]
[404296503,1770043840619,-151.0,0.00011701,2]
[404296504,1770043840628,-151.0,0.00011701,2]
[404296505,1770043840637,-500.0,0.00011701,2]
[404296506,1770043840646,-151.0,0.00011701,2]
[404296507,1770043840655,-500.0,0.00011701,2]
[404296508,1770043840664,-500.0,0.00011701,2]
[404296509,1770043840673,-200.0,0.00011701,2]
[404296510,1770043840682,-151.0,0.00011701,2]
[404296511,1770043840691,-151.0,0.00011701,2]
[404296512,1770043840700,-151.0,0.00011701,2]
[404296513,1770043840709,-151.0,0.00011701,2]
[404296514,1770043840718,-151.0,0.00011701,2]
[404296515,1770043840731,-151.0,0.00011701,2]
[404296516,1770043840739,-200.0,0.00011701,2]
[404296517,1770043840748,-500.0,0.00011701,2]
[404296518,1770043840757,-500.0,0.00011701,2]
[404296519,1770043840766,-500.0,0.00011701,2]
[404296520,1770043840775,-500.0,0.00011701,2]
[404296521,1770043840783,-500.0,0.00011701,2]
[404296522,1770043840792,-500.0,0.00011701,2]
[404296523,1770043840801,-500.0,0.00011701,2]
[404296524,1770043840811,-500.0,0.00011701,2]
[404296525,1770043840820,-500.0,0.00011701,2]
[404296526,1770043840830,-500.0,0.00011701,2]
[404296527,1770043840838,-500.0,0.00011701,2]
[404296528,1770043840848,-150.99,0.00011707,2]
[404296529,1770043840856,-288.1469,0.0001171,2]
[404296530,1770043840865,-1000.0,0.0001171,2]
[404296531,1770043840874,-299.99,0.0001171,2]
[404296532,1770043840883,-343.53,0.0001171,2]
[404296533,1770043840892,-150.99,0.0001171,2]
[404296534,1770043840902,-19999.99,0.0001171,2]
[404296535,1770043840911,-9999.99,0.0001171,2]
[404296536,1770043840920,-433.69,0.0001171,2]
[404296537,1770043840928,-2979.54,0.0001171,2]
[404296538,1770043840937,-4999.99,0.0001171,2]
[404296539,1770043840946,-999.99,0.0001171,2]
[404296540,1770043840955,-9999.99,0.0001171,2]
[404296541,1770043840964,-1470.33,0.0001171,2]
[404296542,1770043840973,-388.17458479,0.0001171,2]
[404296543,1770043840982,-500.0,0.00011744,2]
[404296544,1770043840991,-477.0,0.00011799,2]
[404296545,1770043841000,-201.0,0.00012175,2]
[404296546,1770043841009,-19224.23580444,0.00012218,2]
[404296547,1770043841018,-2425.26986082,0.00012218,2]
[404296548,1770043841027,-740.0,0.00012226,2]
[404296549,1770043841037,-500.0,0.00012249,2]
[404296550,1770043841046,-202.25964161,0.00012249,2]
[404296551,1770043841055,-1304.0,0.00012251,2]
[404296552,1770043841065,-1456.0,0.00012275,2]
[404296553,1770043841084,-1463.0,0.000123,2]
[404296554,1770043841094,-168.67,0.00012364,2]
[404296555,1770043841103,-1315.0,0.00012413,2]
[404296556,1770043841112,-275.5296148,0.00012421,2]
[404296557,1770043841122,-275.5296148,0.00012421,2]
[404296558,1770043841131,-222.0,0.00012438,2]
[404296559,1770043841140,-425.0,0.00012459,2]
[404296560,1770043841150,-921.0,0.00012477,2]
[404296561,1770043841158,-255.0,0.00012565,2]
[404296562,1770043841167,-791.0,0.00012612,2]
[404296563,1770043841176,-527.0,0.00012637,2]
[404296564,1770043841185,-282.0,0.00012638,2]
[404296565,1770043841194,-272.86191395,0.00012657,2]
[404296566,1770043841203,-1680.0,0.00012657,2]
[404296567,1770043841212,-627.61337016,0.00012658,2]
[404296568,1770043841222,-500.0,0.00012766,2]
[404296569,1770043841231,-300.0,0.00012766,2]
[404296570,1770043841240,-250.0,0.00012768,2]
[404296571,1770043841250,-1000.0,0.00012783,2]
[404296572,1770043841259,-198.5031719,0.00012794,2]
[404296573,1770043841269,-500.0,0.00012797,2]
[404296574,1770043841278,-20499.6390525,0.00012868,2]
[404296575,1770043841287,-7764.82,0.00012885,2]
[404296576,1770043841296,-4046.32,0.00012893,2]
[404296577,1770043841306,-19224.23580444,0.00012928,2]
[404296578,1770043841317,-2425.26986082,0.00012928,2]
[404296579,1770043841327,-168.67,0.00013188,2]
[404296580,1770043841337,-1121.23,0.00013218,2]
[404296581,1770043841347,-275.5296148,0.00013334,2]
[404296582,1770043841356,-275.5296148,0.00013334,2]
[404296583,1770043841365,-500.0,0.00013345,2]
[404296584,1770043841375,-3303.17,0.00013543,2]
[404296585,1770043841384,-165.21031003,0.00013629,2]
[404296586,1770043841393,-19224.23580444,0.00013639,2]
[404296587,1770043841402,-2425.26986082,0.00013639,2]
[404296588,1770043841411,-502.28343568,0.00013698,2]
[404296589,1770043841421,-500.0,0.00013698,2]
[404296590,1770043841430,-500.0,0.00013698,2]
[404296591,1770043841439,-500.0,0.00013698,2]
[404296592,1770043841448,-502.06664745,0.00013698,2]
[404296593,1770043841457,-627.61337016,0.00013706,2]
[404296594,1770043841466,-150.0,0.00013716,2]
[404296595,1770043841477,-500.0,0.00013893,2]
[404296596,1770043841487,-2351.0,0.00013922,2]
[404296597,1770043841496,-173.81884184,0.00013973,2]
[404296598,1770043841505,-500.0,0.00013973,2]
[404296599,1770043841514,-500.0,0.00013973,2]
[404296600,1770043841523,-500.0,0.00013973,2]
[404296601,1770043841532,-500.0,0.00013973,2]
[404296602,1770043841541,-513.5746578,0.00013973,2]
[404296603,1770043841550,-163.90719075,0.00013973,2]
[404296604,1770043841559,-200.896366,0.00014,2]
[404296605,1770043841568,-168.67,0.00014013,2]
[404296606,1770043841577,-198.5031719,0.00014048,2]
[404296607,1770043841587,-20499.6390525,0.0001413,2]
[404296608,1770043841596,-275.5296148,0.00014247,2]
[404296609,1770043841605,-19224.23580444,0.00014349,2]
[404296610,1770043841614,-2425.26986082,0.00014349,2]
[404296611,1770043841623,-500.0,0.00014441,2]
[404296612,1770043841632,-1000.0,0.00014521,2]
[404296613,1770043841641,-1014.69284431,0.00014521,2]
[404296614,1770043841650,-508.73137524,0.00014521,2]
[404296615,1770043841660,-999.58852035,0.00014568,2]
[404296616,1770043841669,-2637.92992025,0.00014568,2]
[404296617,1770043841678,-4653.62106315,0.00014568,2]
[404296618,1770043841690,-627.61337016,0.00014755,2]
[404296619,1770043841699,-171.4,0.00014757,2]
[404296620,1770043841708,-168.67,0.00014837,2]
[404296621,1770043841718,-179.5507367,0.000149,2]
[404296622,1770043841730,-507.10580581,0.00014989,2]
[404296623,1770043841739,-200.0,0.00015,2]
[404296624,1770043841748,-19224.23580444,0.00015059,2]
[404296625,1770043841758,-2425.26986082,0.00015059,2]
[404296626,1770043841767,-1500.0,0.00015068,2]
[404296627,1770043841998,-200.0,0.0001515,2]
[404296628,1770043842008,-250.0,0.00015203,2]
[404296629,1770043842018,-1013.85,0.00015298,2]
[404296630,1770043842027,-200.0,0.00015301,2]
[404296631,1770043842036,-198.5031719,0.00015302,2]
[404296632,1770043842046,-3292.0,0.00015314,2]
[404296633,1770043842055,-20499.6390525,0.00015391,2]
[404296634,1770043842064,-186.04289545,0.00015455,2]
[404296635,1770043842077,-500.0,0.00015473,2]
[404296636,1770043842086,-501.68536334,0.00015473,2]
[404296637,1770043842095,-500.0,0.00015473,2]
[404296638,1770043842105,-500.0,0.00015473,2]
[404296639,1770043842114,-500.0,0.00015473,2]
[404296640,1770043842123,-500.0,0.00015473,2]
[404296641,1770043842132,-500.0,0.00015473,2]
[404296642,1770043842142,-500.0,0.00015473,2]
[404296643,1770043842152,-500.0,0.00015473,2]
[404296644,1770043842160,-500.0,0.00015473,2]
[404296645,1770043842168,-500.0,0.00015473,2]
[404296646,1770043842177,-500.0,0.00015473,2]
[404296647,1770043842184,-500.0,0.00015473,2]
[404296648,1770043842192,-292.5328787,0.00015473,2]
[404296649,1770043842201,-500.0,0.00015473,2]
[404296650,1770043842209,-500.0,0.00015473,2]
[404296651,1770043842217,-500.0,0.00015473,2]
[404296652,1770043842227,-500.0,0.00015473,2]
[404296653,1770043842235,-500.0,0.00015473,2]
[404296654,1770043842244,-305.41786048,0.00015473,2]
[404296655,1770043842252,-500.0,0.00015473,2]
[404296656,1770043842261,-500.0,0.00015473,2]
[404296657,1770043842270,-501.6324076,0.00015473,2]
[404296658,1770043842279,-500.0,0.00015473,2]
[404296659,1770043842288,-500.0,0.00015473,2]
[404296660,1770043842297,-500.0,0.00015473,2]
[404296661,1770043842305,-500.0,0.00015473,2]
[404296662,1770043842315,-500.0,0.00015473,2]
[404296663,1770043842323,-500.0,0.00015473,2]
[404296664,1770043842332,-500.0,0.00015473,2]
[404296665,1770043842341,-500.0,0.00015473,2]
[404296666,1770043842349,-500.0,0.00015473,2]
[404296667,1770043842357,-500.0,0.00015473,2]
[404296668,1770043842367,-500.0,0.00015473,2]
[404296669,1770043842375,-500.0,0.00015473,2]
[404296670,1770043842385,-565.00011393,0.00015473,2]
[404296671,1770043842393,-500.0,0.00015473,2]
[404296672,1770043842402,-500.0,0.00015473,2]
[404296673,1770043842411,-500.0,0.00015473,2]
[404296674,1770043842421,-500.0,0.00015473,2]
[404296675,1770043842430,-500.0,0.00015473,2]
[404296676,1770043842439,-500.0,0.00015473,2]
[404296677,1770043842449,-500.0,0.00015473,2]
[404296678,1770043842459,-500.0,0.00015473,2]
[404296679,1770043842468,-500.0,0.00015473,2]
[404296680,1770043842481,-166.66,0.00015533,2]
[404296681,1770043842491,-2000.0,0.00015616,2]
[404296682,1770043842500,-168.67,0.00015661,2]
[404296683,1770043842510,-159.65843549,0.0001568,2]
[404296684,1770043842519,-19224.23580444,0.00015769,2]
[404296685,1770043842528,-2425.26986082,0.00015769,2]
[404296686,1770043842536,-627.61337016,0.00015803,2]
[404296687,1770043842545,-166.66,0.0001586,2]
[404296688,1770043842553,-200.0,0.00016,2]
[404296689,1770043842562,-269.8904873,0.00016021,2]
[404296690,1770043842571,-1000.0,0.00016021,2]
[404296691,1770043842581,-1000.0,0.00016021,2]
[404296692,1770043842590,-987.41342802,0.00016021,2]
[404296693,1770043842599,-1003.70343212,0.00016021,2]
[404296694,1770043842609,-1000.0,0.00016021,2]
[404296695,1770043842619,-500.0,0.00016021,2]
[404296696,1770043842628,-1000.0,0.00016021,2]
[404296697,1770043842638,-787.5401961,0.00016021,2]
[404296698,1770043842647,-500.0,0.00016021,2]
[404296699,1770043842656,-1000.0,0.00016021,2]
[404296700,1770043842666,-326.63399032,0.00016021,2]
[404296701,1770043842675,-1000.0,0.00016021,2]
[404296702,1770043842684,-1000.0,0.00016021,2]
[404296703,1770043842693,-1036.85123149,0.00016021,2]
[404296704,1770043842703,-1000.0,0.00016021,2]
[404296705,1770043842713,-503.32803614,0.00016021,2]
[404296706,1770043842723,-582.33207666,0.00016021,2]
[404296707,1770043842733,-1000.0,0.00016021,2]
[404296708,1770043842742,-1000.0,0.00016021,2]
[404296709,1770043842751,-343.37022852,0.00016021,2]
[404296710,1770043842761,-540.54063963,0.00016021,2]
[404296711,1770043842770,-1000.0,0.00016021,2]
[404296712,1770043842780,-500.0,0.00016021,2]
[404296713,1770043842789,-1000.0,0.00016021,2]
[404296714,1770043842799,-1000.0,0.00016021,2]
[404296715,1770043842808,-500.0,0.00016021,2]
[404296716,1770043842817,-194.71422031,0.00016021,2]
[404296717,1770043842827,-1000.0,0.00016021,2]
[404296718,1770043842836,-908.63714551,0.00016021,2]
[404296719,1770043842845,-1000.0,0.00016021,2]
[404296720,1770043842855,-385.68955508,0.00016021,2]
[404296721,1770043842864,-1000.0,0.00016021,2]
[404296722,1770043842874,-1000.0,0.00016021,2]
[404296723,1770043842883,-500.40903786,0.00016021,2]
[404296724,1770043842893,-500.0,0.00016021,2]
[404296725,1770043842902,-371.34493106,0.00016021,2]
[404296726,1770043842914,-1000.0,0.00016021,2]
[404296727,1770043842929,-1000.0,0.00016021,2]
[404296728,1770043842950,-1000.0,0.00016021,2]
[404296729,1770043842967,-1165.35985631,0.00016164,2]
[404296730,1770043842982,-166.66,0.00016187,2]
[404296731,1770043842992,-159.65843549,0.00016283,2]
[404296732,1770043843002,-839.0,0.000164,2]
[404296733,1770043843013,-500.0,0.00016438,2]
[404296734,1770043843028,-500.0,0.00016438,2]
[404296735,1770043843039,-500.0,0.00016438,2]
[404296736,1770043843050,-500.0,0.00016438,2]
[404296737,1770043843060,-500.0,0.00016438,2]
[404296738,1770043843074,-500.0,0.00016438,2]
[404296739,1770043843084,-500.0,0.00016438,2]
[404296740,1770043843094,-500.0,0.00016438,2]
[404296741,1770043843103,-500.0,0.00016438,2]
[404296742,1770043843114,-500.0,0.00016438,2]
[404296743,1770043843124,-500.0,0.00016438,2]
[404296744,1770043843134,-500.0,0.00016438,2]
[404296745,1770043843146,-500.0,0.00016438,2]
[404296746,1770043843155,-500.0,0.00016438,2]
[404296747,1770043843165,-500.0,0.00016438,2]
[404296748,1770043843175,-500.0,0.00016438,2]
[404296749,1770043843185,-500.0,0.00016438,2]
[404296750,1770043843195,-500.0,0.00016438,2]
[404296751,1770043843204,-500.0,0.00016438,2]
[404296752,1770043843214,-500.0,0.00016438,2]
[404296753,1770043843233,-500.0,0.00016438,2]
[404296754,1770043843246,-409.08933783,0.00016438,2]
[404296755,1770043843259,-500.0,0.00016438,2]
[404296756,1770043843269,-500.0,0.00016438,2]
[404296757,1770043843280,-500.0,0.00016438,2]
[404296758,1770043843291,-500.0,0.00016438,2]
[404296759,1770043843301,-500.0,0.00016438,2]
[404296760,1770043843311,-500.0,0.00016438,2]
[404296761,1770043843321,-500.0,0.00016438,2]
[404296762,1770043843332,-500.0,0.00016438,2]
[404296763,1770043843342,-500.0,0.00016438,2]
[404296764,1770043843352,-500.0,0.00016438,2]
[404296765,1770043843362,-500.0,0.00016438,2]
[404296766,1770043843372,-500.0,0.00016438,2]
[404296767,1770043843381,-500.0,0.00016438,2]
[404296768,1770043843391,-500.0,0.00016438,2]
[404296769,1770043843406,-500.0,0.00016438,2]
[404296770,1770043843427,-500.0,0.00016438,2]
[404296771,1770043843447,-500.0,0.00016438,2]
[404296772,1770043843467,-500.0,0.00016438,2]
[404296773,1770043843484,-500.0,0.00016438,2]
[404296774,1770043843497,-500.0,0.00016438,2]
[404296775,1770043843508,-500.0,0.00016438,2]
[404296776,1770043843520,-500.0,0.00016438,2]
[404296777,1770043843530,-500.0,0.00016438,2]
[404296778,1770043843540,-167.04515169,0.00016438,2]
[404296779,1770043843553,-500.0,0.00016438,2]
[404296780,1770043843563,-500.0,0.00016438,2]
[404296781,1770043843573,-500.0,0.00016438,2]
[404296782,1770043843583,-500.0,0.00016438,2]
[404296783,1770043843592,-500.0,0.00016438,2]
[404296784,1770043843602,-500.0,0.00016438,2]
[404296785,1770043843611,-500.0,0.00016438,2]
[404296786,1770043843623,-500.0,0.00016438,2]
[404296788,1770043843635,-500.0,0.00016438,2]
[404296790,1770043843644,-500.0,0.00016438,2]
[404296793,1770043843656,-400.0,0.00016438,2]
[404296795,1770043843665,-500.0,0.00016438,2]
[404296797,1770043843675,-500.0,0.00016438,2]
[404296799,1770043843685,-500.0,0.00016438,2]
[404296802,1770043843696,-500.0,0.00016438,2]
[404296803,1770043843706,-500.0,0.00016438,2]
[404296804,1770043843716,-500.0,0.00016438,2]
[404296807,1770043843730,-500.0,0.00016438,2]
[404296809,1770043843739,-500.0,0.00016438,2]
[404296810,1770043843748,-500.0,0.00016438,2]
[404296811,1770043843758,-500.0,0.00016438,2]
[404296813,1770043843768,-2000.0,0.00016438,2]
[404296815,1770043843778,-300.0,0.00016473,2]
[404296816,1770043843788,-150.0,0.00016473,2]
[404296818,1770043843800,-500.0,0.00016473,2]
[404296819,1770043843810,-164.46513231,0.00016473,2]
[404296820,1770043843820,-19224.23580444,0.0001648,2]
[404296821,1770043843830,-2425.26986082,0.0001648,2]
[404296822,1770043843840,-168.67,0.00016485,2]
[404296823,1770043843850,-166.66,0.00016514,2]
[404296824,1770043843863,-501.04497332,0.00016568,2]
[404296825,1770043843872,-1500.0,0.00016568,2]
[404296826,1770043843882,-500.0,0.00016568,2]
[404296827,1770043843892,-500.0,0.00016568,2]
[404296828,1770043843903,-1500.0,0.00016568,2]
[404296829,1770043843913,-501.51663727,0.00016568,2]
[404296830,1770043843923,-1500.0,0.00016568,2]
[404296831,1770043843933,-500.0,0.00016568,2]
[404296832,1770043843943,-263.57582064,0.00016568,2]
[404296833,1770043843953,-1001.43163729,0.00016568,2]
[404296834,1770043843963,-1500.0,0.00016568,2]
[404296835,1770043843975,-1078.63346181,0.00016568,2]
[404296836,1770043843984,-1500.0,0.00016568,2]
[404296837,1770043843993,-1500.0,0.00016568,2]
[404296838,1770043844004,-1501.31050168,0.00016568,2]
[404296839,1770043844015,-503.42877829,0.00016568,2]
[404296840,1770043844024,-398.81271673,0.00016568,2]
[404296841,1770043844035,-1501.09498552,0.00016568,2]
[404296842,1770043844044,-382.63613861,0.00016568,2]
[404296843,1770043844054,-166.66,0.00016841,2]
[404296844,1770043844064,-4609.0,0.00016846,2]
[404296845,1770043844076,-627.61337016,0.00016852,2]
[404296846,1770043844085,-500.0,0.00016872,2]
[404296847,1770043844094,-159.65843549,0.00016887,2]
[404296848,1770043844103,-180.0,0.00016999,2]
[404296849,1770043844114,-206.18335719,0.00017021,2]
[404296850,1770043844123,-300.0,0.00017021,2]
[404296851,1770043844132,-1022.8234433,0.00017021,2]